fUST/lending_fUST_20250507
["ID","MTS","AMOUNT","RATE_DAILY","PERIOD"]
[360107679,1746551451782,-400.0,0.00019452,2]
[360107681,1746551451792,-405.48514162,0.00019452,2]
[360107683,1746551451802,-400.0,0.00019452,2]
[360107685,1746551451811,-400.0,0.00019452,2]
[360107687,1746551451822,-506.65,0.00019452,2]
[360107689,1746551451834,-400.0,0.00019452,2]
[360107691,1746551451845,-867.45,0.00019452,2]
[360107693,1746551451854,-400.0,0.00019452,2]
[360107695,1746551451863,-400.0,0.00019452,2]
[360107697,1746551451873,-400.0,0.00019452,2]
[360107699,1746551451883,-428.54,0.00019452,2]
[360107701,1746551451892,-400.0,0.00019452,2]
[360107703,1746551451902,-400.0,0.00019452,2]
[360107705,1746551451912,-400.0,0.00019452,2]
[360107707,1746551451922,-400.0,0.00019452,2]
[360107709,1746551451931,-400.0,0.00019452,2]
[360107711,1746551451941,-1734.58,0.00019452,2]
[360107713,1746551451951,-400.0,0.00019452,2]
[360107715,1746551451961,-151.0,0.00019452,2]
[360107717,1746551451971,-781.9,0.00019452,2]
[360107719,1746551451981,-406.77745766,0.00019452,2]
[360107722,1746551451991,-512.42057002,0.00019452,2]
[360107723,1746551452000,-400.0,0.00019452,2]
[360107725,1746551452010,-400.0,0.00019452,2]
[360107727,1746551452020,-400.0,0.00019452,2]
[360107729,1746551452029,-151.0,0.00019452,2]
[360107731,1746551452039,-400.0,0.00019452,2]
[360107733,1746551452049,-400.0,0.00019452,2]
[360107735,1746551452059,-415.90034457,0.00019452,2]
[360107737,1746551452069,-1095.13,0.00019452,2]
[360107739,1746551452078,-3412.15,0.00019452,2]
[360107741,1746551452088,-400.0,0.00019452,2]
[360107743,1746551452097,-1635.25,0.00019452,2]
[360107745,1746551452107,-400.0,0.00019452,2]
[360107747,1746551452116,-400.0,0.00019452,2]
[360107749,1746551452127,-1172.28,0.00019452,2]
[360107751,1746551452137,-400.0,0.00019452,2]
[360107753,1746551452147,-400.0,0.00019452,2]
[360107755,1746551452155,-400.0,0.00019452,2]
[360107757,1746551452164,-400.0,0.00019452,2]
[360107759,1746551452174,-400.0,0.00019452,2]
[360107761,1746551452183,-495.61,0.00019452,2]
[360107763,1746551452193,-565.81,0.00019452,2]
[360107765,1746551452205,-1308.2,0.00019452,2]
[360107766,1746551452214,-400.0,0.00019452,2]
[360107768,1746551452223,-151.0,0.00019452,2]
[360107770,1746551452232,-400.0,0.00019452,2]
[360107772,1746551452242,-5870.74,0.00019452,2]
[360107774,1746551452252,-758.88,0.00019452,2]
[360107776,1746551452261,-510.74,0.00019452,2]
[360107778,1746551452272,-964.72,0.00019452,2]
[360107780,1746551452282,-895.02,0.00019452,2]
[360107782,1746551452292,-400.0,0.00019452,2]
[360107784,1746551452301,-400.0,0.00019452,2]
[360107786,1746551452311,-400.0,0.00019452,2]
[360107788,1746551452320,-400.0,0.00019452,2]
[360107790,1746551452330,-1684.37,0.00019452,2]
[360107792,1746551452339,-400.0,0.00019452,2]
[360107794,1746551452349,-400.0,0.00019452,2]
[360107796,1746551452358,-353.28047129,0.00019452,2]
[360107798,1746551452369,-151.0,0.00019452,2]
[360107800,1746551452379,-151.0,0.00019452,2]
[360107802,1746551452388,-509.01718628,0.00019452,2]
[360107804,1746551452397,-400.0,0.00019452,2]
[360107806,1746551452407,-346.12022662,0.00019452,2]
[360107808,1746551452416,-400.0,0.00019452,2]
[360107810,1746551452425,-400.0,0.00019452,2]
[360107812,1746551452434,-400.0,0.00019452,2]
[360107814,1746551452443,-855.56,0.00019452,2]
[360107816,1746551452452,-152.884301,0.00019452,2]
[360107818,1746551452461,-1671.52,0.00019452,2]
[360107820,1746551452470,-505.86301473,0.00019452,2]
[360107822,1746551452480,-400.0,0.00019452,2]
[360107824,1746551452489,-400.0,0.00019452,2]
[360107826,1746551452498,-400.0,0.00019452,2]
[360107828,1746551452507,-400.0,0.00019452,2]
[360107830,1746551452517,-400.0,0.00019452,2]
[360107832,1746551452526,-501.77136801,0.00019452,2]
[360107834,1746551452535,-400.0,0.00019452,2]
[360107836,1746551452545,-311.077251,0.00019452,2]
[360107838,1746551452554,-400.0,0.00019452,2]
[360107840,1746551452564,-400.0,0.00019452,2]
[360107842,1746551452574,-311.077251,0.00019452,2]
[360107844,1746551452583,-400.0,0.00019452,2]
[360107846,1746551452593,-400.0,0.00019452,2]
[360107848,1746551452602,-449.36,0.00019452,2]
[360107850,1746551452611,-400.0,0.00019452,2]
[360107852,1746551452621,-1515.05,0.00019452,2]
[360107854,1746551452631,-400.0,0.00019452,2]
[360107856,1746551452640,-400.0,0.00019452,2]
[360107858,1746551452649,-518.61,0.00019452,2]
[360107860,1746551452658,-400.0,0.00019452,2]
[360107862,1746551452667,-400.0,0.00019452,2]
[360107864,1746551452676,-326.7264839,0.00019452,2]
[360107866,1746551452686,-553.59,0.00019452,2]
[360107867,1746551452695,-400.0,0.00019452,2]
[360107869,1746551452705,-400.0,0.00019452,2]
[360107871,1746551452714,-1423.51,0.00019452,2]
[360107873,1746551452723,-400.0,0.00019452,2]
[360107875,1746551452731,-400.0,0.00019452,2]
[360107877,1746551452741,-400.0,0.00019452,2]
[360107878,1746551452750,-569.36,0.00019452,2]
[360107881,1746551452761,-400.8255333,0.00019452,2]
[360107883,1746551452770,-400.0,0.00019452,2]
[360107885,1746551452779,-840.75,0.00019452,2]
[360107887,1746551452788,-400.0,0.00019452,2]
[360107888,1746551452797,-400.0,0.00019452,2]
[360107890,1746551452807,-400.0,0.00019452,2]
[360107893,1746551452817,-202.21434323,0.00019452,2]
[360107895,1746551452827,-400.0,0.00019452,2]
[360107897,1746551452836,-779.44,0.00019452,2]
[360107899,1746551452846,-611.24,0.00019452,2]
[360107900,1746551452856,-1103.28,0.00019452,2]
[360107902,1746551452865,-400.0,0.00019452,2]
[360107904,1746551452874,-400.0,0.00019452,2]
[360107906,1746551452883,-400.0,0.00019452,2]
[360107908,1746551452893,-400.0,0.00019452,2]
[360107910,1746551452903,-449.53782653,0.00019452,2]
[360107912,1746551452914,-400.0,0.00019452,2]
[360107914,1746551452923,-503.64168324,0.00019452,2]
[360107916,1746551452933,-400.0,0.00019452,2]
[360107918,1746551452942,-2143.33,0.00019452,2]
[360107920,1746551452951,-1940.39,0.00019452,2]
[360107922,1746551452960,-692.67,0.00019452,2]
[360107924,1746551452969,-400.0,0.00019452,2]
[360107926,1746551452979,-400.0,0.00019452,2]
[360107928,1746551452988,-400.0,0.00019452,2]
[360107930,1746551452998,-400.0,0.00019452,2]
[360107932,1746551453007,-400.0,0.00019452,2]
[360107934,1746551453017,-400.0,0.00019452,2]
[360107936,1746551453028,-4275.0,0.00019452,2]
[360107938,1746551453038,-400.0,0.00019452,2]
[360107940,1746551453047,-400.0,0.00019452,2]
[360107942,1746551453056,-804.536741,0.00019452,2]
[360107944,1746551453065,-866.6,0.00019452,2]
[360107946,1746551453074,-400.0,0.00019452,2]
[360107959,1746551453193,-400.0,0.00019452,2]
[360107961,1746551453207,-400.0,0.00019452,2]
[360107963,1746551453217,-804.536741,0.00019452,2]
[360107965,1746551453226,-400.0,0.00019452,2]
[360107967,1746551453236,-546.22406821,0.00019452,2]
[360107969,1746551453246,-5675.74,0.00019452,2]
[360107971,1746551453256,-400.0,0.00019452,2]
[360107974,1746551453266,-500.0,0.00019452,2]
[360107975,1746551453276,-400.0,0.00019452,2]
[360107977,1746551453286,-639.99,0.00019452,2]
[360107979,1746551453295,-400.0,0.00019452,2]
[360107981,1746551453304,-400.0,0.00019452,2]
[360107983,1746551453314,-433.78,0.00019452,2]
[360107985,1746551453324,-3008.22,0.00019452,2]
[360107987,1746551453333,-400.0,0.00019452,2]
[360107989,1746551453343,-2645.03,0.00019452,2]
[360107991,1746551453353,-400.0,0.00019452,2]
[360107994,1746551453364,-1695.78,0.00019452,2]
[360107996,1746551453373,-666.84,0.00019452,2]
[360107998,1746551453383,-400.0,0.00019452,2]
[360108000,1746551453393,-224.44762557,0.00019452,2]
[360108002,1746551453402,-2621.11,0.00019452,2]
[360108004,1746551453411,-400.0,0.00019452,2]
[360108006,1746551453421,-500.0,0.00019452,2]
[360108008,1746551453430,-1965.93,0.00019452,2]
[360108009,1746551453439,-404.56256714,0.00019452,2]
[360108011,1746551453449,-593.48,0.00019452,2]
[360108014,1746551453458,-400.0,0.00019452,2]
[360108015,1746551453468,-451.19,0.00019452,2]
[360108017,1746551453477,-502.65057498,0.00019452,2]
[360108020,1746551453487,-400.0,0.00019452,2]
[360108022,1746551453496,-400.0,0.00019452,2]
[360108024,1746551453505,-401.94674852,0.00019452,2]
[360108026,1746551453515,-400.0,0.00019452,2]
[360108027,1746551453524,-400.0,0.00019452,2]
[360108029,1746551453534,-2348.87,0.00019452,2]
[360108031,1746551453546,-400.0,0.00019452,2]
[360108033,1746551453555,-307.06732803,0.00019452,2]
[360108035,1746551453564,-400.0,0.00019452,2]
[360108037,1746551453573,-2394.23,0.00019452,2]
[360108039,1746551453582,-400.0,0.00019452,2]
[360108041,1746551453592,-400.0,0.00019452,2]
[360108043,1746551453601,-400.0,0.00019452,2]
[360108045,1746551453610,-400.0,0.00019452,2]
[360108047,1746551453619,-456.41521488,0.00019452,2]
[360108049,1746551453629,-400.0,0.00019452,2]
[360108051,1746551453638,-1202.38,0.00019452,2]
[360108053,1746551453648,-400.0,0.00019452,2]
[360108055,1746551453657,-400.0,0.00019452,2]
[360108057,1746551453666,-400.0,0.00019452,2]
[360108059,1746551453675,-214.02295616,0.00019452,2]
[360108061,1746551453684,-1234.29,0.00019452,2]
[360108063,1746551453694,-400.0,0.00019452,2]
[360108065,1746551453704,-400.0,0.00019452,2]
[360108067,1746551453715,-400.0,0.00019452,2]
[360108069,1746551453724,-400.0,0.00019452,2]
[360108071,1746551453734,-400.0,0.00019452,2]
[360108073,1746551453743,-414.38058515,0.00019452,2]
[360108075,1746551453753,-435.44,0.00019452,2]
[360108077,1746551453762,-400.0,0.00019452,2]
[360108079,1746551453772,-402.77319095,0.00019452,2]
[360108081,1746551453781,-400.0,0.00019452,2]
[360108083,1746551453790,-778.7,0.00019452,2]
[360108085,1746551453800,-151.0,0.00019452,2]
[360108087,1746551453809,-400.0,0.00019452,2]
[360108089,1746551453819,-1324.45,0.00019452,2]
[360108091,1746551453829,-679.47,0.00019452,2]
[360108093,1746551453837,-400.0,0.00019452,2]
[360108095,1746551453846,-403.32021454,0.00019452,2]
[360108097,1746551453856,-400.0,0.00019452,2]
[360108099,1746551453867,-1713.68,0.00019452,2]
[360108101,1746551453876,-735.24,0.00019452,2]
[360108103,1746551453886,-400.0,0.00019452,2]
[360108105,1746551453895,-1762.42,0.00019452,2]
[360108107,1746551453905,-400.0,0.00019452,2]
[360108109,1746551453915,-400.0,0.00019452,2]
[360108111,1746551453925,-216.6160112,0.00019452,2]
[360108113,1746551453934,-408.62378726,0.00019452,2]
[360108115,1746551453943,-1815.93,0.00019452,2]
[360108117,1746551453952,-400.0,0.00019452,2]
[360108119,1746551453962,-647.42,0.00019452,2]
[360108121,1746551453972,-438.48,0.00019452,2]
[360108123,1746551453981,-400.0,0.00019452,2]
[360108125,1746551453990,-400.0,0.00019452,2]
[360108127,1746551453999,-400.0,0.00019452,2]
[360108129,1746551454009,-1456.25,0.00019452,2]
[360108131,1746551454018,-400.0,0.00019452,2]
[360108133,1746551454028,-400.0,0.00019452,2]
[360108135,1746551454037,-1657.12,0.00019452,2]
[360108137,1746551454046,-422.8,0.00019452,2]
[360108139,1746551454056,-2093.85,0.00019452,2]
[360108141,1746551454066,-400.0,0.00019452,2]
[360108143,1746551454076,-400.0,0.00019452,2]
[360108145,1746551454085,-400.0,0.00019452,2]
[360108147,1746551454095,-151.0,0.00019452,2]
[360108149,1746551454105,-657.42,0.00019452,2]
[360108151,1746551454114,-897.74,0.00019452,2]
[360108153,1746551454125,-400.0,0.00019452,2]
[360108156,1746551454135,-400.0,0.00019452,2]
[360108158,1746551454144,-917.94,0.00019452,2]
[360108159,1746551454153,-403.72300293,0.00019452,2]
[360108162,1746551454164,-537.46,0.00019452,2]
[360108164,1746551454173,-400.0,0.00019452,2]
[360108166,1746551454183,-400.0,0.00019452,2]
[360108168,1746551454192,-3995.95,0.00019452,2]
[360108170,1746551454205,-400.0,0.00019452,2]
[360108172,1746551454215,-400.0,0.00019452,2]
[360108174,1746551454225,-400.0,0.00019452,2]
[360108176,1746551454235,-400.0,0.00019452,2]
[360108178,1746551454245,-3687.73,0.00019452,2]
[360108180,1746551454255,-400.0,0.00019452,2]
[360108182,1746551454265,-400.0,0.00019452,2]
[360108183,1746551454274,-406.5313941,0.00019452,2]
[360108185,1746551454285,-231.50128477,0.00019452,2]
[360108187,1746551454295,-1311.27,0.00019452,2]
[360108189,1746551454304,-151.0,0.00019452,2]
[360108191,1746551454314,-407.394944,0.00019452,2]
[360108193,1746551454323,-400.0,0.00019452,2]
[360108196,1746551454333,-400.0,0.00019452,2]
[360108198,1746551454344,-400.0,0.00019452,2]
[360108200,1746551454353,-151.0,0.00019452,2]
[360108202,1746551454364,-400.0,0.00019452,2]
[360108204,1746551454374,-400.0,0.00019452,2]
[360108206,1746551454384,-532.07,0.00019452,2]
[360108208,1746551454394,-400.0,0.00019452,2]
[360108210,1746551454403,-400.0,0.00019452,2]
[360108212,1746551454412,-7534.29,0.00019452,2]
[360108214,1746551454422,-400.0,0.00019452,2]
[360108216,1746551454431,-487.93,0.00019452,2]
[360108218,1746551454440,-400.0,0.00019452,2]
[360108220,1746551454450,-400.0,0.00019452,2]
[360108222,1746551454459,-400.0,0.00019452,2]
[360108224,1746551454469,-400.0,0.00019452,2]
[360108226,1746551454478,-1481.29,0.00019452,2]
[360108228,1746551454487,-400.0,0.00019452,2]
[360108230,1746551454496,-417.87,0.00019452,2]
[360108232,1746551454505,-400.0,0.00019452,2]
[360108234,1746551454514,-19307.99,0.00019452,2]
[360108236,1746551454523,-400.0,0.00019452,2]
[360108238,1746551454532,-163.4935406,0.00019452,2]
[360108240,1746551454540,-400.0,0.00019452,2]
[360108242,1746551454550,-151.0,0.00019452,2]
[360108244,1746551454558,-400.0,0.00019452,2]
[360108246,1746551454567,-400.0,0.00019452,2]
[360108248,1746551454577,-400.0,0.00019452,2]
[360108250,1746551454586,-400.0,0.00019452,2]
[360108252,1746551454595,-998.0,0.00019452,2]
[360108254,1746551454605,-400.0,0.00019452,2]
[360108256,1746551454614,-405.2688485,0.00019452,2]
[360108257,1746551454623,-151.0,0.00019452,2]
[360108258,1746551454632,-400.0,0.00019452,2]
[360108259,1746551454642,-400.0,0.00019452,2]
[360108260,1746551454651,-505.17156563,0.00019452,2]
[360108261,1746551454660,-400.0,0.00019452,2]
[360108262,1746551454669,-174.646678,0.00019452,2]
[360108263,1746551454678,-233.76033808,0.00019452,2]
[360108264,1746551454688,-9056.13,0.00019452,2]
[360108265,1746551454696,-400.0,0.00019452,2]
[360108266,1746551454705,-174.646678,0.00019452,2]
[360108267,1746551454714,-841.77,0.00019452,2]
[360108268,1746551454723,-403.16813055,0.00019452,2]
[360108269,1746551454732,-153.2741125,0.00019452,2]
[360108270,1746551454742,-400.0,0.00019452,2]
[360108271,1746551454751,-400.0,0.00019452,2]
[360108272,1746551454760,-400.0,0.00019452,2]
[360108273,1746551454769,-400.0,0.00019452,2]
[360108274,1746551454778,-400.0,0.00019452,2]
[360108276,1746551454787,-400.0,0.00019452,2]
[360108278,1746551454797,-400.0,0.00019452,2]
[360108280,1746551454807,-404.73978031,0.00019452,2]
[360108282,1746551454816,-2508.4,0.00019452,2]
[360108284,1746551454826,-400.0,0.00019452,2]
[360108286,1746551454836,-400.0,0.00019452,2]
[360108288,1746551454846,-8873.46,0.00019452,2]
[360108290,1746551454855,-424.05806894,0.00019452,2]
[360108292,1746551454864,-400.0,0.00019452,2]
[360108294,1746551454874,-400.0,0.00019452,2]
[360108296,1746551454883,-1466.55,0.00019452,2]
[360108298,1746551454892,-400.0,0.00019452,2]
[360108300,1746551454901,-401.61499065,0.00019452,2]
[360108302,1746551454911,-3107.34,0.00019452,2]
[360108304,1746551454920,-1755.77,0.00019452,2]
[360108306,1746551454929,-220.64867925,0.00019452,2]
[360108308,1746551454938,-400.0,0.00019452,2]
[360108310,1746551454947,-3620.9,0.00019452,2]
[360108312,1746551454956,-400.0,0.00019452,2]
[360108314,1746551454965,-934.45,0.00019452,2]
[360108316,1746551454974,-442.77,0.00019452,2]
[360108318,1746551454983,-400.0,0.00019452,2]
[360108320,1746551454992,-2816.34,0.00019452,2]
[360108322,1746551455001,-427.19,0.00019452,2]
[360108324,1746551455010,-400.0,0.00019452,2]
[360108326,1746551455019,-500.0,0.00019452,2]
[360108328,1746551455028,-400.0,0.00019452,2]
[360108330,1746551455037,-896.18,0.00019452,2]
[360108332,1746551455046,-613.87,0.00019452,2]
[360108334,1746551455055,-1499.83,0.00019452,2]
[360108336,1746551455064,-400.0,0.00019452,2]
[360108337,1746551455073,-400.0,0.00019452,2]
[360108339,1746551455082,-400.0,0.00019452,2]
[360108341,1746551455092,-400.0,0.00019452,2]
[360108354,1746551455203,-2573.72,0.00019452,2]
[360108356,1746551455213,-400.0,0.00019452,2]
[360108358,1746551455223,-400.0,0.00019452,2]
[360108360,1746551455232,-400.0,0.00019452,2]
[360108362,1746551455243,-400.0,0.00019452,2]
[360108364,1746551455252,-400.0,0.00019452,2]
[360108366,1746551455262,-400.0,0.00019452,2]
[360108368,1746551455271,-1367.64,0.00019452,2]
[360108370,1746551455281,-307.28029054,0.00019452,2]
[360108372,1746551455290,-400.0,0.00019452,2]
[360108374,1746551455300,-640.19,0.00019452,2]
[360108376,1746551455310,-698.58,0.00019452,2]
[360108378,1746551455319,-400.0,0.00019452,2]
[360108380,1746551455329,-400.0,0.00019452,2]
[360108382,1746551455338,-400.0,0.00019452,2]
[360108384,1746551455347,-400.0,0.00019452,2]
[360108386,1746551455356,-1358.88,0.00019452,2]
[360108388,1746551455365,-400.0,0.00019452,2]
[360108390,1746551455377,-400.0,0.00019452,2]
[360108392,1746551455386,-400.0,0.00019452,2]
[360108394,1746551455396,-2370.45,0.00019452,2]
[360108396,1746551455406,-2880.62,0.00019452,2]
[360108398,1746551455416,-400.0,0.00019452,2]
[360108400,1746551455425,-400.0,0.00019452,2]
[360108402,1746551455435,-365.92022932,0.00019452,2]
[360108404,1746551455444,-463.5,0.00019452,2]
[360108406,1746551455453,-613.55168602,0.00019467,2]
[360108408,1746551455465,-1784.8705991,0.00019627,2]
[360108410,1746551455474,-200.0,0.0001965,4]
[360108412,1746551455484,-231.99734595,0.0001965,4]
[360108414,1746551455494,-150.164,0.00019655,2]
[360108416,1746551455504,-5000.0,0.00019658,2]
[360108418,1746551455513,-150.0,0.00019695,2]
[360108420,1746551455522,-173.365,0.00019695,2]
[360108422,1746551455532,-546.0,0.00019695,2]
[360108424,1746551455541,-708.0,0.00019695,2]
[360108426,1746551455550,-2241.0,0.00019695,2]
[360108428,1746551455560,-151.0,0.00019725,2]
[360108430,1746551455569,-266.595694,0.00019725,2]
[360108432,1746551455578,-333.925124,0.00019725,2]
[360108434,1746551455587,-184.611093,0.00019725,2]
[360108436,1746551455596,-184.611093,0.00019725,2]
[360108438,1746551455605,-151.0,0.00019725,2]
[360108440,1746551455614,-151.0,0.00019725,2]
[360108442,1746551455624,-164.5589,0.00019726,2]
[360108444,1746551455633,-151.0,0.00019726,2]
[360108446,1746551455642,-151.0,0.00019726,2]
[360108448,1746551455651,-372.762009,0.00019726,2]
[360108450,1746551455660,-372.762009,0.00019726,2]
[360108452,1746551455669,-151.0,0.00019726,2]
[360108454,1746551455678,-151.0,0.00019726,2]
[360108456,1746551455687,-266.595694,0.00019726,2]
[360108458,1746551455696,-333.925124,0.00019726,2]
[360108460,1746551455705,-184.611093,0.00019726,2]
[360108462,1746551455714,-184.611093,0.00019726,2]
[360108464,1746551455723,-151.0,0.00019726,2]
[360108466,1746551455733,-190.991199,0.00019726,2]
[360108468,1746551455743,-400.0,0.00019726,2]
[360108470,1746551455753,-406.56250304,0.00019726,2]
[360108472,1746551455762,-400.0,0.00019726,2]
[360108474,1746551455771,-400.0,0.00019726,2]
[360108476,1746551455781,-400.0,0.00019726,2]
[360108478,1746551455790,-400.0,0.00019726,2]
[360108480,1746551455799,-157.35116353,0.00019726,2]
[360108482,1746551455808,-400.0,0.00019726,2]
[360108484,1746551455818,-400.0,0.00019726,2]
[360108486,1746551455827,-400.0,0.00019726,2]
[360108488,1746551455837,-400.0,0.00019726,2]
[360108490,1746551455846,-400.0,0.00019726,2]
[360108492,1746551455856,-180.12203808,0.00019726,2]
[360108494,1746551455865,-400.0,0.00019726,2]
[360108496,1746551455875,-400.0,0.00019726,2]
[360108498,1746551455884,-943.34,0.00019726,2]
[360108500,1746551455894,-400.0,0.00019726,2]
[360108502,1746551455903,-405.17132737,0.00019726,2]
[360108504,1746551455913,-400.0,0.00019726,2]
[360108506,1746551455923,-400.0,0.00019726,2]
[360108508,1746551455932,-508.96990523,0.00019726,2]
[360108510,1746551455941,-400.0,0.00019726,2]
[360108512,1746551455951,-400.0,0.00019726,2]
[360108514,1746551455960,-400.0,0.00019726,2]
[360108516,1746551455970,-400.0,0.00019726,2]
[360108518,1746551455979,-400.0,0.00019726,2]
[360108520,1746551455989,-400.0,0.00019726,2]
[360108522,1746551455998,-400.0,0.00019726,2]
[360108524,1746551456007,-311.2897186,0.00019726,2]
[360108526,1746551456017,-400.0,0.00019726,2]
[360108528,1746551456026,-297.91767361,0.00019726,2]
[360108530,1746551456035,-235.53624296,0.00019726,2]
[360108532,1746551456045,-400.0,0.00019726,2]
[360108534,1746551456055,-400.0,0.00019726,2]
[360108536,1746551456065,-400.0,0.00019726,2]
[360108538,1746551456075,-400.0,0.00019726,2]
[360108540,1746551456084,-400.0,0.00019726,2]
[360108542,1746551456094,-400.0,0.00019726,2]
[360108544,1746551456103,-400.0,0.00019726,2]
[360108546,1746551456112,-400.0,0.00019726,2]
[360108548,1746551456121,-400.0,0.00019726,2]
[360108550,1746551456131,-400.0,0.00019726,2]
[360108552,1746551456141,-419.0,0.00019726,2]
[360108554,1746551456151,-209.47719121,0.00019726,2]
[360108556,1746551456160,-400.0,0.00019726,2]
[360108558,1746551456169,-439.32,0.00019726,2]
[360108560,1746551456178,-400.0,0.00019726,2]
[360108562,1746551456188,-1322.3,0.00019726,2]
[360108564,1746551456199,-200.0,0.00019726,2]
[360108566,1746551456210,-400.0,0.00019726,2]
[360108568,1746551456219,-613.43,0.00019726,2]
[360108571,1746551456229,-400.0,0.00019726,2]
[360108573,1746551456238,-400.0,0.00019726,2]
[360108575,1746551456249,-400.0,0.00019726,2]
[360108577,1746551456258,-400.0,0.00019726,2]
[360108579,1746551456268,-1000.0,0.00019726,2]
[360108581,1746551456279,-500.0,0.00019726,2]
[360108583,1746551456289,-151.0,0.00019726,2]
[360108585,1746551456299,-469.63,0.00019726,2]
[360108587,1746551456309,-400.0,0.00019726,2]
[360108589,1746551456318,-400.0,0.00019726,2]
[360108591,1746551456329,-358.0,0.00019726,2]
[360108593,1746551456338,-400.0,0.00019726,2]
[360108595,1746551456347,-400.0,0.00019726,2]
[360108597,1746551456357,-151.0,0.00019726,2]
[360108599,1746551456367,-400.0,0.00019726,2]
[360108601,1746551456376,-509.99697885,0.00019726,2]
[360108603,1746551456387,-400.0,0.00019726,2]
[360108605,1746551456396,-400.0,0.00019726,2]
[360108607,1746551456406,-557.65,0.00019726,2]
[360108609,1746551456416,-405.75510111,0.00019726,2]
[360108611,1746551456426,-400.0,0.00019726,2]
[360108613,1746551456436,-400.0,0.00019726,2]
[360108615,1746551456446,-1052.77,0.00019726,2]
[360108617,1746551456455,-400.0,0.00019726,2]
[360108619,1746551456465,-400.0,0.00019726,2]
[360108621,1746551456474,-400.0,0.00019726,2]
[360108623,1746551456484,-400.0,0.00019726,2]
[360108626,1746551456495,-582.88,0.00019726,2]
[360108628,1746551456505,-400.0,0.00019726,2]
[360108630,1746551456516,-151.0,0.00019726,2]
[360108632,1746551456526,-400.0,0.00019726,2]
[360108634,1746551456535,-400.0,0.00019726,2]
[360108636,1746551456544,-428.96269452,0.00019726,2]
[360108638,1746551456555,-460.53,0.00019726,2]
[360108640,1746551456564,-400.0,0.00019726,2]
[360108642,1746551456574,-526.76559724,0.00019726,2]
[360108644,1746551456583,-563.37,0.00019726,2]
[360108646,1746551456592,-529.91430435,0.00019726,2]
[360108648,1746551456601,-451.51,0.00019726,2]
[360108650,1746551456610,-400.53537334,0.00019726,2]
[360108652,1746551456619,-500.0,0.00019726,2]
[360108654,1746551456629,-400.0,0.00019726,2]
[360108656,1746551456638,-400.0,0.00019726,2]
[360108658,1746551456647,-400.0,0.00019726,2]
[360108660,1746551456655,-400.0,0.00019726,2]
[360108662,1746551456665,-384.36037893,0.00019726,2]
[360108664,1746551456674,-400.0,0.00019726,2]
[360108666,1746551456683,-151.0,0.00019726,2]
[360108668,1746551456692,-400.0,0.00019726,2]
[360108670,1746551456701,-1994.82,0.00019726,2]
[360108672,1746551456711,-332.75881654,0.00019726,2]
[360108674,1746551456720,-400.0,0.00019726,2]
[360108676,1746551456730,-675.2,0.00019726,2]
[360108678,1746551456740,-1428.88,0.00019726,2]
[360108680,1746551456749,-400.0,0.00019726,2]